bitfinex/quotes_SOLUSD_20250419
["timestamp","ask_amount","ask_price","bid_price","bid_amount"]
[1745044127365,2.70135081,138.01,137.95,6.52409961]
[1745044128571,6.52032166,138.03,137.95,6.52409961]
[1745044129056,5.40261299,138.02,137.95,6.52409961]
[1745044130070,2.70119939,138.01,137.95,6.52409961]
[1745044130452,9.22255967,138.01,137.95,6.52409961]
[1745044130856,6.52136028,138.01,137.95,6.52409961]
[1745044131470,6.52079408,138.02,137.95,6.52409961]
[1745044131867,5.25992122,138.01,137.95,6.52409961]
[1745044132468,11.78120632,138.01,137.95,6.52409961]
[1745044132773,5.25992122,138.01,137.95,6.52409961]
[1745044133271,6.52094375,138.02,137.95,6.52409961]
[1745044133972,2.70118054,138.01,137.95,6.52409961]
[1745044134861,6.52032166,138.03,137.95,6.52409961]
[1745044135755,2.70298063,138.02,137.95,6.52409961]
[1745044135957,6.52126657,138.01,137.95,6.52409961]
[1745044137077,1.6362,138.02,137.95,6.52409961]
[1745044137476,2.70213646,138.01,137.95,6.52409961]
[1745044137979,2.70213646,138.0,137.95,6.52409961]
[1745044138178,2.70213646,138.0,137.94,26.0]
[1745044138783,1.6362,138.02,137.94,26.0]
[1745044139184,11.92440293,138.01,137.94,26.0]
[1745044139887,6.52126657,138.01,137.94,26.0]
[1745044140985,2.70190401,138.0,137.94,26.0]
[1745044141787,6.52126657,138.01,137.94,26.0]
[1745044143369,22.824433,138.01,137.94,26.0]
[1745044143782,2.70160898,138.0,137.94,26.0]
[1745044144895,9.22423264,137.99,137.94,26.0]
[1745044145591,6.52262366,137.99,137.94,26.0]
[1745044147196,22.824433,138.01,137.94,26.0]
[1745044148090,2.70051784,138.0,137.94,26.0]
[1745044148283,13.3605621,138.0,137.94,26.0]
[1745044148993,6.52268444,137.98,137.94,26.0]
[1745044151693,16.30546169,138.0,137.94,26.0]
[1745044152295,2.70006746,137.99,137.94,26.0]
[1745044152483,5.40016601,137.98,137.94,26.0]
[1745044152988,5.40016601,137.98,137.92,0.063]
[1745044153171,16.82006746,137.99,137.92,0.063]
[1745044153376,2.70006746,137.97,137.92,0.063]
[1745044153894,6.52363003,137.96,137.92,0.063]
[1745044154988,16.30740997,137.98,137.92,0.063]
[1745044154989,22.83009441,137.98,137.92,0.063]
[1745044156193,2.69873166,137.97,137.92,0.063]
[1745044157182,24.38099441,137.98,137.92,0.063]
[1745044157685,6.52363003,137.96,137.92,0.063]
[1745044159799,6.5231572,137.97,137.92,0.063]
[1745044182312,6.52252349,137.99,137.92,18.71264886]
[1745044182505,6.52126657,138.01,137.93,6.52504893]
[1745044182707,6.52126657,138.01,137.93,12.64484893]
[1745044182900,10.66710217,138.0,137.93,12.64484893]
[1745044183100,2.70234067,137.99,137.93,12.64484893]
[1745044183914,5.2624248,138.0,137.93,12.64484893]
[1745044184214,5.2624248,137.99,137.93,12.64484893]
[1745044184719,11.78470647,137.99,137.93,12.64484893]
[1745044185917,6.52126657,138.01,137.93,12.64484893]
[1745044186615,2.7050404,138.0,137.93,12.64484893]
[1745044186815,8.1151212,138.0,137.93,12.64484893]
[1745044187018,11.93222311,138.0,137.93,12.64484893]
[1745044187620,5.4100808,137.99,137.93,12.64484893]
[1745044188516,6.52214231,138.0,137.93,12.64484893]
[1745044188710,6.52126657,138.01,137.93,12.64484893]
[1745044189219,2.70552132,138.0,137.93,12.64484893]
[1745044189409,5.25298738,137.99,137.93,12.64484893]
[1745044190105,11.77520128,137.99,137.93,12.64484893]
[1745044190522,6.5222139,137.99,137.93,12.64484893]
[1745044191217,6.52126657,138.01,137.94,44.64964886]
[1745044192819,6.52126657,138.01,137.95,6.52410293]
[1745044193518,0.03,138.03,137.96,18.64964886]
[1745044194123,0.03,138.03,137.97,26.0]
[1745044194327,0.03,138.03,137.98,18.64964886]
[1745044194711,0.03,138.03,137.98,6.52268444]
[1745044194929,0.03,138.03,137.98,32.52268444]
[1745044195512,0.03,138.03,137.99,18.64964886]
[1745044196217,0.03,138.03,137.98,32.52268444]
[1745044197029,0.03,138.03,137.99,18.64964886]
[1745044198225,0.03,138.03,137.99,25.17143515]
[1745044199923,0.03,138.03,137.99,18.64964886]
[1745044202032,0.03,138.03,137.97,7.948]
[1745044202230,0.03,138.03,137.98,18.64964886]
[1745044203327,0.03,138.03,137.97,26.0]
[1745044204231,0.03,138.03,137.94,6.6235]
[1745044204428,0.03,138.03,137.95,18.64964886]
[1745044204729,0.03,138.03,137.95,44.64964886]
[1745044205628,0.03,138.03,137.95,18.64964886]
[1745044205830,0.03,138.03,137.95,44.64964886]
[1745044207027,22.85112583,138.03,137.95,44.64964886]
[1745044210136,22.85112583,138.03,137.95,26.0]
[1745044210637,22.85112583,138.03,137.94,32.76964886]
[1745044210935,1.644,138.02,137.94,14.12]
[1745044211832,18.64964886,138.01,137.93,26.0]
[1745044212217,11.89540147,138.0,137.93,26.0]
[1745044212731,1.6429,137.98,137.92,0.063]
[1745044213328,5.2218606,137.97,137.92,0.063]
[1745044213938,26.0,137.96,137.92,0.063]
[1745044214125,25.16464886,137.95,137.91,0.063]
[1745044214325,26.0,137.92,137.91,1e-08]
[1745044214526,15.7629,137.94,137.87,0.063]
[1745044214527,22.84263958,137.9,137.87,0.063]
[1745044216230,22.84263958,137.9,137.87,1e-08]
[1745044217519,48.84263958,137.9,137.87,1e-08]
[1745044223531,22.84263958,137.9,137.87,1e-08]
[1745044224843,16.31617113,137.9,137.87,1e-08]
[1745044230345,18.64964886,137.89,137.87,1e-08]
[1745044230741,16.31617113,137.9,137.87,1e-08]
[1745044234458,6.52599521,137.91,137.87,1e-08]
[1745044239360,22.83843233,137.93,137.87,1e-08]
[1745044240958,6.52504893,137.93,137.87,1e-08]
[1745044241671,6.52410293,137.95,137.89,26.46704886]
[1745044241857,6.55378067,137.96,137.89,26.46704886]
[1745044242067,0.03,137.96,137.9,14.78]
[1745044242264,0.03,137.96,137.92,44.64964886]
[1745044242657,0.03,137.96,137.93,6.52504893]
[1745044244471,0.03,137.96,137.95,32.2283]
[1745044244668,0.03,137.96,137.95,65.63794886]
[1745044244971,0.03,137.96,137.95,67.22704886]
[1745044246775,0.03,137.96,137.95,73.75115179]
[1745044249472,0.03,137.96,137.95,46.9883]
[1745044249675,0.03,137.96,137.95,40.76]
[1745044251378,0.03,137.96,137.95,47.28410293]
[1745044252374,0.03,137.96,137.93,6.52473736]
[1745044252572,0.03,137.96,137.93,32.52473736]
[1745044253271,0.03,137.96,137.93,26.0]
[1745044253471,0.03,137.96,137.93,32.52502144]
[1745044255850,0.03,137.96,137.93,26.0]
[1745044256870,0.03,137.96,137.92,6.52535456]
[1745044262876,0.03,137.96,137.92,22.83915966]
[1745044263985,0.03,137.96,137.93,18.64964886]
[1745044265384,0.03,137.96,137.95,32.52410293]
[1745044267574,0.03,137.96,137.95,51.17375179]
[1745044285903,0.03,137.96,137.95,32.52410293]
[1745044286608,0.03,137.96,137.94,6.52446359]
[1745044287181,0.03,137.96,137.94,21.26446359]
[1745044288903,0.03,137.96,137.94,6.52446359]
[1745044308815,0.03,137.96,137.95,18.64964886]
[1745044311738,0.03,137.96,137.95,6.52410293]
[1745044325550,0.03,137.96,137.95,20.88410293]
[1745044328351,0.03,137.96,137.95,32.52410293]
[1745044331550,0.03,137.96,137.95,51.17375179]
[1745044332553,0.03,137.96,137.95,25.17375179]
[1745044336739,0.03,137.96,137.95,51.17375179]
[1745044337262,0.03,137.96,137.95,32.52410293]
[1745044347566,0.03,137.96,137.95,51.17375179]
[1745044351372,0.03,137.96,137.95,25.17375179]
[1745044353865,0.03,137.96,137.95,32.52410293]
[1745044354172,0.03,137.96,137.95,26.0]
[1745044355374,0.03,137.96,137.95,32.52410293]
[1745044356179,0.03,137.96,137.95,26.0]
[1745044358376,1.6545,137.96,137.95,26.0]
[1745044362772,0.03,137.96,137.95,26.0]
[1745044363687,0.03,137.96,137.95,32.52410293]
[1745044377196,1.5693,137.95,137.91,6.52599521]
[1745044377502,1.5693,137.95,137.9,4.90924254]
[1745044377703,1.5693,137.95,137.92,26.0]
[1745044378699,8.09375825,137.95,137.92,26.0]
[1745044378907,5.39364246,137.94,137.91,26.0]
[1745044379501,5.39364246,137.94,137.92,26.0]
[1745044379706,5.39364246,137.93,137.92,26.0]
[1745044380592,5.39364246,137.93,137.91,26.0]
[1745044380796,8.09375825,137.95,137.92,26.0]
[1745044382904,8.09375825,137.95,137.9,4.90924254]
[1745044383090,8.09375825,137.95,137.9,30.90924254]
[1745044383493,6.0747,137.94,137.9,30.90924254]
[1745044385112,6.52504893,137.93,137.9,30.90924254]
[1745044388007,6.52504893,137.93,137.9,4.90924254]
[1745044393822,20.30134886,137.92,137.9,4.90924254]
[1745044395121,1.6517,137.92,137.9,4.90924254]
[1745044395709,8.17744894,137.92,137.9,4.90924254]
[1745044396524,8.17744894,137.92,137.87,1e-08]
[1745044397109,18.64964886,137.91,137.87,1e-08]
[1745044398238,6.52646845,137.9,137.87,1e-08]
[1745044399814,1.5805,137.88,137.87,1e-08]
[1745044400013,20.23014886,137.88,137.87,1e-08]
[1745044400617,20.23014886,137.88,137.86,0.063]
[1745044401324,25.17753745,137.87,137.86,0.063]
[1745044401533,30.53045338,137.87,137.86,0.063]
[1745044402241,30.53045338,137.87,137.85,0.063]
[1745044402612,25.17753745,137.87,137.85,0.063]
[1745044404737,26.0,137.83,137.81,0.063]
[1745044405240,6.53025685,137.82,137.81,0.063]
[1745044406219,25.17990571,137.82,137.81,0.063]
[1745044406622,6.53025685,137.82,137.81,0.063]
[1745044406833,25.17990571,137.82,137.81,0.063]
[1745044407229,20.72883569,137.85,137.81,0.063]
[1745044407431,26.0,137.84,137.81,0.063]
[1745044408048,20.72883569,137.85,137.81,0.063]
[1745044409831,25.17848455,137.85,137.81,0.063]
[1745044410946,6.52883569,137.85,137.81,0.063]
[1745044413927,14.32341713,137.86,137.81,0.063]
[1745044414642,18.64964886,137.85,137.81,0.063]
[1745044415550,30.64432239,137.86,137.81,0.063]
[1745044415738,6.52930934,137.84,137.81,0.063]
[1745044417147,6.52895655,137.85,137.81,0.063]
[1745044428659,6.52788859,137.87,137.81,0.063]
[1745044430663,6.52694176,137.89,137.83,6.52978306]
[1745044431974,6.52694176,137.89,137.82,32.53005814]
[1745044433172,6.52694176,137.89,137.82,26.0]
[1745044433768,22.84429617,137.89,137.82,26.0]
[1745044433969,5.36093664,137.88,137.82,26.0]
[1745044434379,5.36093664,137.88,137.81,0.063]
[1745044434676,5.36093664,137.88,137.81,26.063]
[1745044434977,5.36093664,137.87,137.81,26.063]
[1745044435355,6.5283621,137.86,137.81,0.063]
[1745044436679,16.31735441,137.89,137.81,0.063]
[1745044436680,18.64964886,137.88,137.81,0.063]
[1745044436973,5.36676821,137.87,137.81,0.063]
[1745044437867,1.5076,137.85,137.81,0.063]
[1745044438674,5.36676821,137.84,137.81,0.063]
[1745044439573,6.52930934,137.84,137.81,0.063]
[1745044443569,5.37679763,137.83,137.81,0.063]
[1745044444681,6.52930934,137.84,137.81,0.063]
[1745044446479,5.37303192,137.83,137.81,0.063]
[1745044447381,6.52930934,137.84,137.81,0.063]
[1745044449479,8.03658245,137.85,137.81,0.063]
[1745044450077,6.52898245,137.85,137.81,0.063]
[1745044450266,42.32076085,137.87,137.81,0.063]
[1745044450267,6.52844627,137.86,137.81,0.063]
[1745044450879,5.37334143,137.85,137.81,0.063]
[1745044451087,11.90234673,137.85,137.81,0.063]
[1745044451684,5.37334143,137.84,137.81,0.063]
[1745044452585,6.5290053,137.85,137.81,0.063]
[1745044454079,6.52978306,137.83,137.81,0.063]
[1745044455185,5.37357425,137.82,137.81,0.063]
[1745044455567,10.746274,137.82,137.81,0.063]
[1745044456686,19.96258393,137.82,137.81,0.063]
[1745044459902,64.61223279,137.82,137.81,0.063]
[1745044460193,64.61223279,137.82,137.79,0.063]
[1745044460194,26.0,137.8,137.79,0.063]
[1745044460577,31.37357425,137.8,137.79,0.063]
[1745044460782,8.05962733,137.8,137.79,0.063]
[1745044461099,13.43232708,137.8,137.79,0.063]
[1745044462013,19.96353172,137.8,137.79,0.063]
[1745044462591,38.61318058,137.8,137.79,0.063]
[1745044465699,19.96353172,137.8,137.79,0.063]
[1745044466474,38.61318058,137.8,137.79,0.063]
[1745044475910,38.58938397,137.8,137.79,0.063]
[1745044479407,56.42949558,137.8,137.75,0.063]
[1745044479590,18.64964886,137.79,137.75,0.063]
[1745044479797,14.28,137.78,137.75,0.063]
[1745044480005,18.64964886,137.77,137.75,0.063]
[1745044480403,10.72247739,137.76,137.75,0.063]
[1745044481009,13.40853047,137.76,137.75,0.063]
[1745044481611,19.94163151,137.76,137.75,0.063]
[1745044482314,14.59185387,137.76,137.75,0.063]
[1745044482696,8.05875283,137.76,137.75,0.063]
[1745044482896,5.37269975,137.76,137.75,0.063]
[1745044483715,6.53296146,137.77,137.75,0.063]
[1745044486619,11.88171026,137.76,137.75,0.063]
[1745044487717,17.22958812,137.76,137.75,0.063]
[1745044488616,11.88171026,137.76,137.75,0.063]
[1745044488927,6.53262684,137.77,137.75,0.063]
[1745044491529,11.88108213,137.76,137.75,0.063]
[1745044491818,30.53073099,137.76,137.75,0.063]
[1745044494328,11.88108213,137.76,137.75,0.063]
[1745044498723,17.23526495,137.76,137.75,0.063]
[1745044499326,38.56199646,137.76,137.75,0.063]
[1745044500828,19.9123476,137.76,137.75,0.063]
[1745044501327,17.23526495,137.76,137.75,0.063]
[1745044501709,11.88108213,137.76,137.75,0.063]
[1745044503130,14.56148743,137.76,137.75,0.063]
[1745044504330,19.92415269,137.76,137.75,0.063]
[1745044517634,13.39105165,137.76,137.75,0.063]
[1745044518233,10.71064635,137.76,137.75,0.063]
[1745044519616,5.34798109,137.76,137.75,0.063]
[1745044520032,20.85042776,137.82,137.76,26.0]
[1745044520233,6.53042776,137.82,137.77,7.5954]
[1745044520433,6.52990553,137.83,137.77,7.5954]
[1745044520819,13.43162412,137.82,137.77,7.5954]
[1745044521539,10.7452993,137.82,137.77,7.5954]
[1745044521842,11.90298133,137.82,137.77,14.12800984]
[1745044522047,6.53033168,137.82,137.77,14.12800984]
[1745044522644,6.53033168,137.82,137.77,7.5954]
[1745044526040,6.52930934,137.84,137.77,14.12768714]
[1745044526642,25.1789582,137.84,137.77,7.5954]
[1745044526831,8.03768166,137.83,137.77,7.5954]
[1745044527234,8.03768166,137.83,137.77,14.12793283]
[1745044527731,5.35845445,137.82,137.77,14.12793283]
[1745044528342,6.52930934,137.84,137.77,14.12793283]
[1745044529556,5.35476017,137.83,137.77,14.12793283]
[1745044530552,0.03,137.85,137.77,14.12793283]
[1745044530753,2.67679645,137.84,137.77,14.12793283]
[1745044531352,0.03,137.85,137.77,14.12793283]
[1745044531841,5.35275853,137.84,137.77,14.12793283]
[1745044532855,6.55883569,137.85,137.77,14.12793283]
[1745044533237,6.55883569,137.85,137.77,30.45949993]
[1745044533734,2.67566274,137.84,137.77,30.45949993]
[1745044534837,6.55883569,137.85,137.77,30.45949993]
[1745044535153,6.55883569,137.85,137.77,14.12793283]
[1745044535555,5.34982445,137.84,137.77,14.12793283]
[1745044536157,6.55883569,137.85,137.77,14.12793283]
[1745044536357,0.03,137.85,137.81,26.0]
[1745044538157,0.03,137.85,137.82,6.53025685]
[1745044546342,0.03,137.85,137.78,14.32]
[1745044546543,0.03,137.85,137.79,6.53158938]
[1745044547246,0.03,137.85,137.78,46.85197687]
[1745044547447,0.03,137.85,137.78,20.85197687]
[1745044547860,0.03,137.85,137.78,46.85197687]
[1745044548457,6.55883569,137.85,137.78,46.85197687]
[1745044548851,6.55883569,137.85,137.78,32.53197687]
[1745044551567,0.03,137.85,137.81,26.0]
[1745044553467,0.03,137.85,137.82,6.53025685]
[1745044559075,0.03,137.85,137.81,32.53062675]
[1745044562871,0.03,137.85,137.81,26.0]
[1745044563172,0.03,137.85,137.79,14.32]
[1745044563366,0.03,137.85,137.77,7.5954]
[1745044563566,2.68190555,137.84,137.77,26.0]
[1745044564167,5.36355653,137.83,137.77,26.0]
[1745044564481,5.36355653,137.83,137.76,6.53310104]
[1745044564667,9.21247808,137.82,137.76,32.53310104]
[1745044565568,6.53057253,137.82,137.76,32.53310104]
[1745044566381,6.52930934,137.84,137.76,32.53310104]
[1745044566577,22.88117687,137.85,137.76,32.53310104]
[1745044567279,8.0509405,137.84,137.76,32.53310104]
[1745044568085,6.52978306,137.83,137.76,32.53310104]
[1745044569685,6.55883569,137.85,137.76,48.86585365]
[1745044570381,5.36917858,137.84,137.76,48.86585365]
[1745044570772,2.68464936,137.83,137.76,48.86585365]
[1745044570972,18.64964886,137.8,137.75,0.063]
[1745044571175,32.90964886,137.8,137.75,0.063]
[1745044571374,5.36917858,137.79,137.75,0.063]
[1745044571568,21.33429822,137.78,137.75,0.063]
[1745044571768,1.5494,137.77,137.75,0.063]
[1745044572467,5.36917858,137.76,137.75,0.063]
[1745044572877,14.58692898,137.76,137.75,0.063]
[1745044573378,19.94637663,137.76,137.75,0.063]
[1745044573774,17.26172727,137.76,137.75,0.063]
[1745044574595,11.89254869,137.76,137.75,0.063]
[1745044576085,6.53310104,137.76,137.75,0.063]
[1745044578186,25.1827499,137.76,137.75,0.063]
[1745044581290,6.53310104,137.76,137.75,0.063]
[1745044587498,25.1827499,137.76,137.75,0.063]
[1745044587998,6.53310104,137.76,137.75,0.063]
[1745044592002,25.1827499,137.76,137.75,0.063]
[1745044593312,6.53310104,137.76,137.75,0.063]
[1745044598110,25.1827499,137.76,137.75,0.063]
[1745044601523,30.51791346,137.76,137.75,0.063]
[1745044603619,35.85687823,137.76,137.75,0.063]
[1745044604522,30.51791346,137.76,137.75,0.063]
[1745044607129,35.86553651,137.76,137.75,0.063]
[1745044607440,38.54124555,137.76,137.75,0.063]
[1745044607939,19.89159669,137.76,137.75,0.063]
[1745044608138,17.21588765,137.76,137.75,0.063]
[1745044609038,11.8682646,137.76,137.75,0.063]
[1745044610856,14.54775383,137.76,137.75,0.063]
[1745044611724,8.01465279,137.76,137.75,0.063]
[1745044612048,5.33516356,137.76,137.75,0.063]
[1745044613053,10.70046498,137.76,137.75,0.063]
[1745044614140,5.33516356,137.76,137.75,0.063]
[1745044614951,6.53120464,137.8,137.75,0.063]
[1745044615330,8.06126265,137.79,137.75,0.063]
[1745044615749,5.38004436,137.78,137.75,0.063]
[1745044616353,2.68708762,137.77,137.75,0.063]
[1745044616651,5.38004436,137.76,137.75,0.063]
[1745044617345,6.53167889,137.79,137.75,0.063]
[1745044617545,5.37534455,137.78,137.75,0.063]
[1745044619143,6.53124857,137.8,137.75,0.063]
[1745044619655,2.68563278,137.79,137.75,0.063]
[1745044620256,414.82,138.16,137.75,0.063]
[1745044620257,14.2,137.82,137.75,0.063]
[1745044620557,14.2,137.82,137.76,6.5539]
[1745044620742,5.37117064,137.81,137.76,6.5539]
[1745044620943,2.68558469,137.8,137.76,6.5539]
[1745044621655,5.37117064,137.81,137.77,6.53262684]
[1745044621959,5.3682693,137.79,137.77,6.53262684]
[1745044622552,5.3682693,137.79,137.76,13.08681471]
[1745044622758,20.73032282,137.82,137.76,13.08681471]
[1745044623560,2.68280753,137.81,137.76,13.08681471]
[1745044623761,5.36561223,137.8,137.76,13.08681471]
[1745044625165,6.5307586,137.81,137.76,13.08681471]
[1745044625539,2.6817765,137.8,137.76,13.08681471]
[1745044626154,6.5307586,137.81,137.76,13.08681471]
[1745044627458,5.36256617,137.8,137.76,13.08681471]
[1745044628155,5.36256617,137.8,137.76,39.08681471]
[1745044628459,5.36256617,137.8,137.76,40.60571471]
[1745044628654,6.53038714,137.82,137.76,40.60571471]
[1745044630365,6.52930934,137.84,137.76,40.60571471]
[1745044630882,5.35877411,137.83,137.76,40.60571471]
[1745044631066,10.71748411,137.83,137.76,40.60571471]
[1745044631463,17.24753599,137.83,137.76,40.60571471]
[1745044631847,11.88876188,137.83,137.76,40.60571471]
[1745044632047,6.53005188,137.83,137.76,40.60571471]
[1745044632866,6.52930934,137.84,137.76,40.60571471]
[1745044633559,2.67804906,137.83,137.76,40.60571471]
[1745044634168,6.53017056,137.83,137.76,39.08681471]
[1745044634371,18.64964886,137.82,137.75,6.59622987]
[1745044634552,22.85462822,137.83,137.75,6.59622987]
[1745044634754,18.64964886,137.82,137.75,6.59622987]
[1745044635071,8.03505889,137.81,137.75,26.063]
[1745044635569,5.35667816,137.81,137.75,26.063]
[1745044636252,6.53120464,137.8,137.75,32.59642205]
[1745044636450,6.53025685,137.82,137.75,32.59642205]
[1745044636664,8.12168826,137.83,137.75,32.59642205]
[1745044636864,6.52988826,137.83,137.75,32.59642205]
[1745044637376,5.3571213,137.82,137.75,32.59642205]
[1745044638155,6.52988826,137.83,137.75,32.59642205]
[1745044640472,11.88793606,137.82,137.75,32.59642205]
[1745044641379,6.52978306,137.83,137.75,32.59642205]
[1745044642453,6.52946089,137.84,137.76,6.4441]
[1745044642660,6.55900334,137.85,137.76,6.4441]
[1745044643273,2.67867556,137.84,137.76,6.4441]
[1745044643476,5.35743899,137.83,137.77,6.53262684]
[1745044644580,6.52975721,137.84,137.77,6.53262684]
[1745044645178,6.55883569,137.85,137.77,6.53262684]
[1745044645382,41.53057377,137.85,137.77,6.53262684]
[1745044645574,2.6790085,137.84,137.77,6.53262684]
[1745044646180,41.53057377,137.85,137.77,6.53262684]
[1745044646673,6.52978306,137.83,137.77,6.53262684]
[1745044647781,6.52930934,137.84,137.77,6.53262684]
[1745044648283,5.35989269,137.83,137.77,6.53262684]
[1745044649369,6.52930934,137.84,137.77,6.53262684]
[1745044650086,6.53025685,137.82,137.77,6.53262684]
[1745044651480,6.53025685,137.82,137.76,12.97700332]
[1745044651686,6.53025685,137.82,137.76,6.53290332]
[1745044651880,2.68387723,137.81,137.76,6.53290332]
[1745044652884,35.00173808,137.85,137.76,6.53290332]
[1745044652885,25.1789582,137.84,137.76,6.53290332]
[1745044653399,5.37121675,137.83,137.76,6.53290332]
[1745044653769,5.37264319,137.82,137.76,6.53290332]
[1745044654294,6.53025685,137.82,137.76,6.53290332]
[1745044654474,5.37121675,137.81,137.76,6.53290332]
[1745044655190,6.53025685,137.82,137.76,6.53290332]
[1745044656083,2.68717956,137.81,137.76,6.53290332]
[1745044656887,6.52987782,137.83,137.76,6.53290332]
[1745044657281,5.37644681,137.82,137.76,6.53290332]
[1745044658189,5.37644681,137.81,137.76,6.53290332]
[1745044659191,22.88092491,137.85,137.76,6.53290332]
[1745044659590,5.38243135,137.84,137.76,6.53290332]
[1745044660589,6.53025685,137.82,137.76,6.53290332]
[1745044661290,2.6919491,137.81,137.76,6.53290332]
[1745044662183,2.6919491,137.8,137.76,6.53290332]
[1745044662990,6.53025685,137.82,137.76,6.53290332]
[1745044663791,10.7729136,137.81,137.76,6.53290332]
[1745044663980,13.466142,137.81,137.76,6.53290332]
[1745044664598,2.6932284,137.8,137.76,6.53290332]
[1745044665282,6.53025685,137.82,137.76,6.53290332]
[1745044665971,2.69439189,137.81,137.76,6.53290332]
[1745044666495,5.38948867,137.8,137.76,6.53290332]
[1745044667695,6.53025685,137.82,137.76,6.53290332]
[1745044668089,5.388519,137.81,137.76,6.53290332]
[1745044668593,11.91938399,137.81,137.76,6.53290332]
[1745044668789,8.14696499,137.81,137.75,0.063]
[1745044669178,2.69376046,137.8,137.75,0.063]
[1745044669378,18.64964886,137.79,137.75,0.063]
[1745044669786,32.82964886,137.79,137.75,0.063]
[1745044669984,13.46533697,137.78,137.75,0.063]
[1745044670998,6.53310104,137.76,137.75,0.063]
[1745044671590,11.91888925,137.76,137.75,0.063]
[1745044671797,14.61264971,137.76,137.75,0.063]
[1745044672096,19.99843801,137.76,137.75,0.063]
[1745044672598,17.30467755,137.76,137.75,0.063]
[1745044677518,11.91888934,137.76,137.75,0.063]
[1745044679504,6.5321527,137.78,137.75,0.063]
[1745044680108,5.3667378,137.77,137.75,0.063]
[1745044681105,6.5321527,137.78,137.75,0.063]
[1745044681310,6.53310104,137.76,137.75,0.063]
[1745044681812,25.1827499,137.76,137.75,0.063]
[1745044682401,30.54689185,137.76,137.75,0.063]
[1745044682601,35.90929635,137.76,137.75,0.063]
[1745044683112,38.59066449,137.76,137.75,0.063]
[1745044684513,35.90929635,137.76,137.75,0.063]
[1745044688216,38.58634617,137.76,137.75,0.063]
[1745044699631,35.90929635,137.76,137.75,0.063]
[1745044700930,35.90929635,137.76,137.75,1e-08]
[1745044701429,38.58476938,137.76,137.75,1e-08]
[1745044702330,44.64964886,137.74,137.73,0.063]
[1745044702526,70.37325336,137.74,137.73,1e-08]
[1745044702925,74.58662639,137.74,137.73,1e-08]
[1745044703117,74.58662639,137.74,137.64,13.12859628]
[1745044703118,18.64964886,137.7,137.62,6.53969191]
[1745044703326,18.64964886,137.68,137.62,6.53969191]
[1745044704030,17.88144761,137.69,137.62,6.53969191]
[1745044704231,14.2,137.69,137.62,6.53969191]
[1745044706028,14.2,137.73,137.66,6.5743]
[1745044707628,14.2,137.73,137.67,6.53737197]
[1745044708031,14.2,137.73,137.66,13.11198778]
[1745044711535,24.00492483,137.72,137.64,6.53836344]
[1745044712740,18.64964886,137.72,137.64,6.53836344]
[1745044713453,14.2,137.73,137.64,22.88535559]
[1745044714545,5.36183904,137.72,137.64,22.88535559]
[1745044715440,26.0,137.74,137.64,22.88535559]
[1745044715648,2.68107211,137.73,137.64,22.88535559]
[1745044716142,5.36212012,137.72,137.64,22.88535559]
[1745044717028,26.0,137.74,137.64,22.88535559]
[1745044717547,5.36277444,137.73,137.64,22.88535559]
[1745044718253,5.36277444,137.72,137.64,22.88535559]
[1745044719247,18.64964886,137.73,137.64,22.88535559]
[1745044719742,5.36415472,137.72,137.64,22.88535559]
[1745044720637,5.36415472,137.72,137.64,6.53836344]
[1745044721353,5.36415472,137.71,137.64,6.53836344]
[1745044722749,18.64964886,137.71,137.64,6.53836344]
[1745044724457,15.7432,137.72,137.64,6.53836344]
[1745044725051,10.73182819,137.71,137.64,6.53836344]
[1745044726251,15.7432,137.72,137.64,6.53836344]
[1745044726452,2.68348854,137.71,137.64,6.53836344]
[1745044726858,5.36656829,137.7,137.64,6.53836344]
[1745044727853,15.7432,137.72,137.64,6.53836344]
[1745044728035,5.36653884,137.71,137.64,6.53836344]
[1745044729054,5.36653884,137.7,137.64,6.53836344]
[1745044730149,15.7432,137.72,137.64,6.53836344]
[1745044730359,18.64964886,137.71,137.63,32.53908855]
[1745044730657,5.36661411,137.7,137.63,32.53908855]
[1745044730831,5.36654168,137.69,137.63,32.53908855]